[Event "Dutch Open 2022"]
[Site "Dieren"]
[Date "2022.07.26"]
[Round "1.8"]
[White "De Boer, Bas"]
[Black "Elgersma, Onno"]
[Result "0-1"]
[ECO "D48"]
[WhiteElo "2136"]
[BlackElo "2316"]
[Annotator "TA"]
[PlyCount "56"]
[EventDate "2022.07.14"]
[EventType "swiss"]
[EventCountry "NED"]
[SourceTitle "playchess.com"]
[Source "ChessBase"]
[SourceQuality "1"]
[TimeControl "40/5400+30:1800+30"]

{[%evp 19,56,-25,-16,-23,-26,-23,-7,-31,-29,-22,-17,-35,-24,-35,-39,-52,6,-83,-92,-218,-64,-57,-53,-54,-43,-41,0,-62,-62,-172,-147,-329,-332,-734,-781,-950,-943,-956,-919]} 1. d4 {[%emt 0:00:02]} Nf6 {[%emt 0:00:17]} 2. c4 {[%emt 0:00:06]} e6 {[%emt 0:00:10]} 3. Nc3 {[%emt 0:00:14]} d5 {[%emt 0:00:17]} 4. Nf3 {[%emt 0:01:40]} a6 {[%emt 0:00:32]} 5. e3 {[%emt 0:03:04]} dxc4 {[%emt 0:01:20]} 6. Bxc4 {[%emt 0:00:44]} b5 {[%emt 0:00:22]} 7. Bd3 {[%emt 0:04:00]} Bb7 {[%emt 0:02:57]} 8. O-O {[%emt 0:02:10]} c5 {[%emt 0:02:30]} 9. b3 {[%emt 0:02:45]} Nbd7 {[%emt 0:03:59]} 10. Bb2 {[%emt 0:00:57]} Be7 {[%emt 0:04:23]} 11. Qe2 {[%emt 0:04:08] D48: Semi-Slav: Meran System: 7...b5 8 Bd3 a6.} O-O {[%emt 0:00:57]} 12. Rfd1 {[%emt 0:01:00]} Qb8 {[%emt 0:08:44] [#]} 13. a4 $146 {[%emt 0:06:29] The position is equal.} ({Predecessor:} 13. Rac1 Rc8 14. Bb1 Nb6 15. dxc5 Rxc5 16. Nd2 Qe8 17. Nce4 Nxe4 18. Nxe4 Rxc1 19. Rxc1 {0-1 (78) Koneru,H (2548)-Zawadzka,J (2407) Khanty-Mansiysk 2018}) 13... b4 {[%emt 0:08:00]} 14. Nb1 {[%emt 0:00:09]} cxd4 {[%emt 0:00:40]} 15. Nxd4 {[%emt 0:03:47]} Ne5 {[%emt 0:01:46]} 16. Bc2 {[%emt 0:03:07]} Rc8 {[%emt 0:04:46]} (16... Neg4 {is interesting.} 17. g3 Rc8 18. Bd3 Ne5) 17. f4 {[%emt 0:03:21]} Ng6 {[%emt 0:13:12]} (17... Nc6 $15) 18. Bd3 {[%emt 0:05:33]} (18. Nd2 $11 {remains equal.}) 18... Bc5 $36 {[%emt 0:12:41][%cal Og6f4][%mdl 2048] Keeping White busy.} 19. Nd2 {[%emt 0:06:05] [#]} (19. Bxg6 $17 hxg6 20. Nd2) 19... Nd5 $2 {[%emt 0:01:19]} (19... Nxf4 $1 $19 {[%mdl 512]} 20. exf4 Qxf4) 20. Bxg6 {[%emt 0:10:52]} hxg6 {[%emt 0:01:38][%cal Bh7g6,Bg6g5][%mdl 32]} 21. Nc4 {[%emt 0:00:07]} Qc7 {[%emt 0:02:36]} 22. Rac1 {[%emt 0:03:17]} Rab8 {[%emt 0:00:24]} 23. Ne5 {[%emt 0:02:24]} ({White should play} 23. Kh1 $11) 23... Qe7 $15 {[%emt 0:00:24]} 24. Rd2 {[%emt 0:11:34] [#]} (24. Nc4 $15) 24... g5 $1 $19 {[%emt 0:08:02]} 25. Rxc5 $2 {[%emt 0:11:20]} (25. fxg5 $17 {is a better defense.} Qxg5 26. Nc4 (26. Nxf7 $2 Kxf7 27. Rdc2 Nf6 $19)) 25... Rxc5 {[%emt 0:00:49]} 26. f5 $2 {[%emt 0:00:45]} (26. Nd3 Nc3 27. Qg4) 26... Nc3 {[%emt 0:01:49] Black is clearly winning.} 27. Bxc3 {[%emt 0:05:31]} bxc3 {[%emt 0:00:07]} 28. fxe6 {[%emt 0:00:06]} Rxe5 {[%emt 0:05:29] Weighted Error Value: White=0.70/Black=0.22 (precise)} 0-1

[Event "Dutch Open 2022"]
[Site "Dieren"]
[Date "2022.07.26"]
[Round "1.9"]
[White "Van Roon, Sjoerd"]
[Black "Kohler, Aran"]
[Result "1-0"]
[ECO "B12"]
[WhiteElo "2310"]
[BlackElo "2121"]
[Annotator "TA"]
[PlyCount "137"]
[EventDate "2022.07.14"]
[EventType "swiss"]
[EventCountry "NED"]
[SourceTitle "playchess.com"]
[Source "ChessBase"]
[SourceQuality "1"]
[TimeControl "40/5400+30:1800+30"]

{[%evp 9,136,10,18,14,14,18,24,-3,16,16,26,22,30,22,40,0,76,4,46,0,0,-28,-21,-44,-25,3,-12,-22,27,37,88,99,145,130,120,0,118,62,122,135,132,132,214,210,193,193,192,22,18,37,16,0,0,0,0,0,0,0,0,-107,-121,-117,-134,-100,0,0,32,0,0,0,84,84,114,101,87,87,310,199,226,237,465,438,436,413,479,481,477,466,450,436,586,587,563,567,597,506,746,709,866,806,1065,1038,2411,1485,912,1056,12841,12841,12844,12841,12844,12841,12844,12843,12844,12844,12845,12845,12850,12850,12850,12849,12850,27999,27999,27999,27999,27999,29999]} 1. e4 {[%emt 0:00:03]} c6 {[%emt 0:00:07]} 2. d4 {[%emt 0:00:05]} d5 {[%emt 0:00:04]} 3. e5 {[%emt 0:00:17]} c5 {[%emt 0:00:37]} 4. dxc5 {[%emt 0:00:24]} e6 {[%emt 0:00:50]} 5. Nf3 {[%emt 0:00:08]} Bxc5 {[%emt 0:00:16]} 6. Bd3 {[%emt 0:00:22] B12: Caro-Kann: Advance Variation.} Ne7 {[%emt 0:02:19] is currently scoring better than 6...Nc6.} 7. Qe2 {[%emt 0:06:32]} Nbc6 {[%emt 0:00:54]} 8. Bf4 {[%emt 0:01:03] White has an edge.} Ng6 {[%emt 0:00:09]} 9. Bg3 {[%emt 1:26:06]} Qb6 {[%emt 0:00:31]} 10. c3 {[%emt 0:01:45] [#]} a5 $146 {[%emt 0:01:45]} ({Predecessor:} 10... Qc7 11. O-O Bd7 12. b4 Bb6 13. Nbd2 a6 14. Rfe1 Na7 15. Rac1 Bb5 16. Bxb5+ Nxb5 17. c4 dxc4 18. Nxc4 Ba7 19. Nd6+ {1-0 (19) Marcziter,A (1602)-Skopp,J (1594) Playchess.com INT 2020}) 11. O-O {[%emt 0:06:21]} Bd7 {[%emt 1:28:28]} 12. Nbd2 {[%emt 0:05:42]} Be7 {[%emt 0:08:32]} (12... Qxb2 $11 13. Rab1 Qxa2) 13. Nb3 {[%emt 0:03:42]} (13. h4 $16) 13... f5 {[%emt 0:03:22]} (13... a4 $5 {[%cal Ra4b3]} 14. Nbd4 O-O $11) 14. Nbd4 {[%emt 0:06:57]} (14. exf6 $14 gxf6 15. Rad1) 14... O-O {[%emt 0:01:32]} 15. h4 {[%emt 1:04:17]} Nxd4 {[%emt 0:04:39]} 16. cxd4 {[%emt 0:00:23]} Qd8 {[%emt 0:04:00][%cal Rg6h4]} 17. h5 {[%emt 0:04:41]} Nh8 {[%emt 0:00:28]} 18. Ne1 {[%emt 0:09:16]} f4 {[%emt 0:06:39]} (18... Qb6 {is superior.}) 19. Bh2 $11 {[%emt 0:00:06]} Qe8 {[%emt 0:04:44]} (19... Qb6 $1 $14) 20. Qg4 $16 {[%emt 0:03:55]} Qf7 {[%emt 0:09:51]} ({Black should try} 20... g5) 21. Rc1 {[%emt 0:00:29]} Bd8 {[%emt 0:01:27] Inhibits Rc7.} 22. g3 {[%emt 0:10:27]} (22. Nf3 $16) 22... Be8 {[%emt 0:08:38]} (22... f3 $11) 23. h6 {[%emt 0:02:25]} (23. Ng2 $16) 23... g6 {[%emt 0:00:34]} (23... Ng6 $14) 24. gxf4 {[%emt 0:01:28]} ({Don't play} 24. Qxf4 $6 Qxf4 25. gxf4 Nf7 $11) 24... Qd7 {[%emt 0:01:14]} 25. Nf3 {[%emt 0:00:54] 0x0.00204ae3e233dp-1022s more active pieces. The black rooks are badly placed.} b5 {[%emt 0:04:36]} (25... Nf7 $16) 26. Bg3 {[%emt 0:01:08]} Nf7 {[%emt 0:02:03] [#]} 27. Bxg6 $1 {[%emt 0:00:47][%mdl 512]} Kh8 {[%emt 0:00:59]} 28. Bd3 {[%emt 0:06:28]} (28. Bxf7 $18 Qxf7 29. Ng5 Bxg5 30. fxg5 (30. Qxg5 Qb7 $18)) 28... Nxh6 $11 {[%emt 0:00:23]} 29. Qh3 {[%emt 0:00:24]} Nf5 {[%emt 0:01:55]} 30. Kg2 {[%emt 0:00:55]} Bg6 {[%emt 0:02:09]} 31. Rfd1 {[%emt 0:11:15]} Rg8 {[%emt 0:04:13]} 32. Kf1 $40 {[%emt 0:00:58][%cal Bg2f1,Bf1e2,Be2d3,Bd3e3,Be3f2][%mdl 160] Black needs to defend precisely.} Rc8 {[%emt 0:09:23]} 33. Rxc8 {[%emt 0:02:46]} Qxc8 {[%emt 0:03:17]} 34. Bxb5 {[%emt 0:02:57]} (34. Kg2 $11 {keeps the balance.}) 34... Qc2 {[%emt 0:00:37][%csl LRb2,LRd1]} 35. Rd2 {[%emt 0:00:26] [#]} Qc1+ {[%emt 0:05:03]} 36. Ke2 {[%emt 0:01:04]} Nxg3+ {[%emt 0:00:42]} (36... Qb1 $17 {aiming for ...Qe4+.} 37. Bd3 Qxa2) 37. fxg3 {[%emt 0:00:14]} Bf5 {[%emt 0:01:32]} 38. Qh2 {[%emt 0:01:15]} a4 {[%emt 0:02:35]} 39. Bd3 {[%emt 0:03:04]} Bxd3+ {[%emt 0:02:08]} (39... Be4 $1 $11) 40. Kxd3 $16 {[%emt 0:00:27]} ({Much weaker is} 40. Rxd3 $6 Ba5 $11) 40... Qc4+ {[%emt 0:00:53]} 41. Ke3 {[%emt 0:30:06] Threatens to win with Qh3.} Qxa2 {[%emt 0:30:14] [#]} 42. Kf2 $1 {[%emt 0:00:00]} Qb3 $2 {[%emt 0:00:00] This costs Black the game.} (42... Qb1 $16 {was called for.}) 43. Qh5 {[%emt 0:00:00]} Ba5 {[%emt 0:00:00]} 44. Re2 {[%emt 0:00:00]} Qd3 $2 {[%emt 0:00:00]} (44... Bb6 {was necessary.} 45. Qh4 Bd8) 45. Qf7 $18 {[%emt 0:00:00] Black must now prevent Qf6+.} Qg6 {[%emt 0:06:54]} 46. Qxg6 {[%emt 0:00:00]} hxg6 {[%emt 0:00:00][%mdl 4096] Endgame KRB-KRN} 47. Ng5 {[%emt 0:00:00]} Re8 {[%emt 0:00:00]} 48. Rc2 {[%emt 0:00:00]} Bb6 {[%emt 0:00:00]} 49. Ke3 {[%emt 0:00:00]} Ba7 {[%emt 0:00:00]} 50. Rc7 {[%emt 0:00:00]} Bb6 {[%emt 0:00:00]} 51. Rc6 {[%emt 0:00:00]} Ba5 {[%emt 0:00:00]} 52. Nxe6 {[%emt 0:00:00]} Be1 {[%emt 0:00:00]} 53. Nc5 {[%emt 0:00:00][%csl LRa4,LRg6]} Rb8 {[%emt 0:00:00]} 54. Nxa4 {[%emt 0:00:00]} Rb3+ {[%emt 0:00:00]} 55. Ke2 {[%emt 0:00:00]} Bxg3 {[%emt 0:00:00]} 56. Rc3 {[%emt 0:00:00]} Rb4 {[%emt 0:00:00]} 57. Rxg3 {[%emt 0:00:00]} Rxa4 {[%emt 0:00:00]} 58. Rxg6 {[%emt 0:00:00]} Rxd4 {[%emt 0:00:00] KR-KR} 59. Kf3 {[%emt 0:00:00]} Rb4 {[%emt 0:00:00]} 60. Rd6 {[%emt 0:13:03]} d4 {[%emt 0:00:00]} 61. f5 {[%emt 0:00:00]} Kg7 {[%emt 0:00:00]} 62. Kf4 {[%emt 0:00:38]} d3+ {[%emt 0:00:00]} 63. Kg5 {[%emt 0:00:04]} Rxb2 {[%emt 0:00:00]} 64. Rd7+ {[%emt 0:00:06]} Kf8 {[%emt 0:00:00]} 65. Kf6 {[%emt 0:00:13][%cal Rd7d8]} Ke8 {[%emt 0:00:00] Against Rd8+} 66. Rxd3 {[%emt 0:00:03]} Rb7 {[%emt 0:17:24] White mates.} 67. e6 {[%emt 0:00:16][%cal Be5e6,Be6f7][%mdl 32]} Rf7+ {[%emt 0:00:00]} 68. exf7+ {[%emt 0:00:07]} Kf8 {[%emt 0:00:00]} 69. Rd8# {[%emt 0:16:06] Weighted Error Value: White=0.28 (precise) /Black=0.39} 1-0

[Event "Dutch Open 2022"]
[Site "Dieren"]
[Date "2022.07.26"]
[Round "1.10"]
[White "Roorda, Thijs"]
[Black "Van Baar, Esper"]
[Result "0-1"]
[ECO "D00"]
[WhiteElo "2113"]
[BlackElo "2281"]
[Annotator "TA"]
[PlyCount "76"]
[EventDate "2022.07.14"]
[EventType "swiss"]
[EventCountry "NED"]
[SourceTitle "playchess.com"]
[Source "ChessBase"]
[SourceQuality "1"]
[TimeControl "40/5400+30:1800+30"]

{[%evp 9,76,-6,12,-37,-5,-71,-98,-97,-95,-87,-72,-66,-72,-68,0,0,-1,-96,-79,-98,-91,-77,-101,-96,-87,-73,-13,-76,-76,-64,-69,-46,-69,-275,-275,-267,-189,-186,-184,-225,-204,-381,-375,-347,-390,-378,-379,-374,-372,-360,-310,-454,-445,-525,-502,-497,-484,-480,-414,-632,-611,-658,-633,-621,-619,-1114,-1032,-610,-486]} 1. d4 {[%emt 0:00:03]} Nf6 {[%emt 0:00:03]} 2. Nc3 {[%emt 0:00:10]} d5 {[%emt 0:00:54]} 3. Bf4 {[%emt 0:00:08]} a6 {[%emt 0:02:22]} 4. e3 {[%emt 0:00:52]} e6 {[%emt 0:01:48]} 5. g4 {[%emt 0:01:28]} Bb4 {[%emt 0:10:00]} 6. Bd3 {[%emt 0:10:56] D00: 1 d4 d5: Unusual lines.} (6. Nge2 $11 {is more appropriate.}) 6... c5 {[%emt 0:05:03]} 7. dxc5 {[%emt 0:04:21]} (7. g5 $1 $11 Nfd7 8. Nf3) 7... Nc6 $17 {[%emt 0:05:13] [#]} 8. Bd6 $146 {[%emt 0:08:18] Black is better.} ({Predecessor:} 8. g5 Nd7 9. h4 Nxc5 10. Nf3 Na4 11. Qd2 Nxb2 12. a3 Qa5 13. axb4 Qxa1+ 14. Nd1 Qxd1+ 15. Qxd1 Nxd1 16. Kxd1 Nxb4 {1-0 (36) He,A (2443)-Chernobay,A (2484) Chess.com INT 2022}) 8... b6 {[%emt 0:04:05]} 9. a3 {[%emt 0:01:49]} Bxc5 {[%emt 0:03:43]} ({Don't play} 9... bxc5 $6 10. axb4 Qxd6 11. bxc5 Qxc5 12. g5 $15) 10. Bg3 {[%emt 0:05:46]} h6 {[%emt 0:06:39]} 11. Qf3 {[%emt 0:22:38]} e5 {[%emt 0:09:56]} (11... Bb7 $15) 12. Bf5 $1 $11 {[%emt 0:01:16]} e4 {[%emt 0:23:10]} 13. Qf4 {[%emt 0:05:00] [#]} (13. Qg2 $1 $11 {keeps the balance.}) 13... g5 $1 $17 {[%emt 0:03:49]} 14. Qc7 {[%emt 0:00:29]} Qxc7 {[%emt 0:02:40]} 15. Bxc7 {[%emt 0:00:06]} Bxf5 {[%emt 0:01:55]} ({Reject} 15... Nxg4 16. Bxg4 Bxg4 17. Nxd5 $11) 16. gxf5 {[%emt 0:00:11]} Rc8 $36 {[%emt 0:01:26][%mdl 2048] Black is in control.} 17. Bg3 {[%emt 0:00:23]} O-O {[%emt 0:03:57] Black is more active.} (17... d4 $17 18. exd4 Nxd4) 18. Nge2 {[%emt 0:01:34]} (18. h4 $11 {remains equal.}) 18... d4 {[%emt 0:01:30]} 19. exd4 {[%emt 0:06:44]} Nxd4 {[%emt 0:00:05]} 20. Nxd4 {[%emt 0:01:39]} Bxd4 {[%emt 0:00:04][%mdl 64] Discovered Attack} 21. Ne2 $2 {[%emt 0:00:16] This move loses the game for White.} ({White should play} 21. O-O-O $15 Bxc3 22. bxc3) 21... Bxb2 $19 {[%emt 0:02:12]} 22. Ra2 {[%emt 0:00:16]} Bc3+ {[%emt 0:02:39]} 23. Nxc3 {[%emt 0:00:08]} Rxc3 {[%emt 0:00:04]} 24. h4 {[%emt 0:01:36]} e3 {[%emt 0:01:56] Threatens to win with ...Ne4.} 25. Be5 $2 {[%emt 0:02:50]} (25. hxg5 hxg5 26. Be5 exf2+ 27. Kf1) 25... exf2+ {[%emt 0:00:27]} 26. Kf1 {[%emt 0:00:04] [#]} Re3 $1 {[%emt 0:01:44]} 27. Bxf6 {[%emt 0:00:29]} Re1+ {[%emt 0:00:07][%mdl 64] Skewer} 28. Kxf2 {[%emt 0:00:06]} Rxh1 {[%emt 0:00:05]} 29. hxg5 {[%emt 0:00:05]} hxg5 {[%emt 0:00:12]} 30. Bxg5 {[%emt 0:00:05][%mdl 4096] Endgame KRR-KRB} (30. a4 {might work better.}) 30... Rh5 {[%emt 0:00:15]} 31. Bf4 {[%emt 0:00:57]} Rxf5 {[%emt 0:00:07]} 32. Kf3 {[%emt 0:00:03]} Rc8 {[%emt 0:00:44] aiming for ...Rc4.} 33. Ke4 {[%emt 0:01:52]} Rfc5 {[%emt 0:00:39]} 34. Ra1 {[%emt 0:00:30]} (34. Be3 $142 Rxc2 35. Ra1) 34... Rc4+ {[%emt 0:00:57] Black is clearly winning.} 35. Kf5 {[%emt 0:00:39]} R8c5+ {[%emt 0:02:23]} 36. Be5 {[%emt 0:00:14]} Rxc2 {[%emt 0:01:05]} 37. Rg1+ {[%emt 0:01:17]} Kf8 {[%emt 0:00:19]} 38. Re1 {[%emt 0:01:05] Against Re2} Ke7 {[%emt 0:02:35] Weighted Error Value: White=0.59/Black=0.14 (very precise)} 0-1

[Event "Dutch Open 2022"]
[Site "Dieren"]
[Date "2022.07.26"]
[Round "1.11"]
[White "Baselmans, Luuk"]
[Black "Zwirs, Jasper"]
[Result "0-1"]
[ECO "B51"]
[WhiteElo "2256"]
[BlackElo "2105"]
[Annotator "TA"]
[PlyCount "108"]
[EventDate "2022.07.14"]
[EventType "swiss"]
[EventCountry "NED"]
[SourceTitle "playchess.com"]
[Source "ChessBase"]
[SourceQuality "1"]
[TimeControl "40/5400+30:1800+30"]

{[%evp 9,108,0,18,15,10,0,0,0,0,-7,14,0,37,0,49,13,11,14,14,8,10,24,24,36,37,27,28,26,35,30,24,-11,-12,-30,-25,-35,-42,-87,-29,-35,-20,-37,-16,-38,-8,-90,-11,-14,0,0,0,0,0,0,28,22,37,37,54,49,87,63,100,95,480,228,228,203,218,-496,-487,-562,-555,-715,-672,-1223,-1075,-1335,-1299,-1158,-260,-441,-460,-485,-470,-480,-456,-981,-525,-1194,-1194,-1098,-630,-1063,-1027,-29971,-29973,-29996,-29997,-29997,-6808]} 1. e4 {[%emt 0:00:03]} c5 {[%emt 0:00:04]} 2. Nf3 {[%emt 0:00:12]} d6 {[%emt 0:00:06]} 3. Bb5+ {[%emt 0:00:13]} Nd7 {[%emt 0:01:28]} 4. Ba4 {[%emt 0:01:00]} Ngf6 {[%emt 0:02:11]} 5. O-O {[%emt 0:00:32]} e6 {[%emt 0:01:41]} 6. Re1 {[%emt 0:00:38] B51: Sicilian: Moscow Variation (3 Bb5+) without 3...Bd7.} a6 {[%emt 0:01:25]} 7. c4 {[%emt 0:01:02] Prevents b5.} Be7 {[%emt 0:00:30]} 8. Nc3 {[%emt 0:00:28] The position is equal.} O-O {[%emt 0:00:32]} 9. d3 {[%emt 0:02:40] [#]} Nb6 $146 {[%emt 0:05:48]} ({Predecessor:} 9... Ne5 10. Nxe5 dxe5 11. Be3 Qc7 12. a3 Rd8 13. h3 Bd7 14. Qc2 h6 15. Rab1 Rac8 {½-½ (32) Grandelius,N (2694)-Swiercz,D (2655) Astana 2019}) 10. Bb3 {[%emt 0:01:00]} e5 {[%emt 0:04:43]} 11. h3 {[%emt 0:04:53]} h6 {[%emt 0:08:35]} (11... Nfd7 $11) 12. Nh2 {[%emt 0:06:39]} Nh7 {[%emt 0:13:29]} 13. f4 {[%emt 0:05:49]} exf4 {[%emt 0:08:54]} 14. Bxf4 {[%emt 0:00:21]} Bg5 {[%emt 0:02:25]} 15. Qd2 {[%emt 0:09:10]} Bxf4 {[%emt 0:07:55]} 16. Qxf4 {[%emt 0:00:09]} Ng5 {[%emt 0:00:06][%cal Oc8h3]} 17. Kh1 {[%emt 0:06:09]} Ne6 {[%emt 0:10:42]} 18. Qg3 {[%emt 0:03:44]} Nd4 {[%emt 0:04:32]} 19. Nf3 {[%emt 0:03:10]} Nxf3 {[%emt 0:00:57]} 20. Qxf3 {[%emt 0:00:14]} Nd7 {[%emt 0:01:52]} 21. Qe3 {[%emt 0:04:33]} Ne5 {[%emt 0:07:40]} 22. Rad1 {[%emt 0:02:29]} Qh4 {[%emt 0:01:34] ...Ng4 is the strong threat.} 23. Kg1 {[%emt 0:04:17]} Be6 {[%emt 0:03:55]} (23... f5 $1 $17 {And now ...f4 would win.} 24. d4 cxd4 25. Qxd4 f4) 24. Rf1 {[%emt 0:01:31]} Rae8 {[%emt 0:03:35]} 25. Ba4 {[%emt 0:02:27]} Rd8 {[%emt 0:01:52]} 26. a3 {[%emt 0:01:02]} f5 {[%emt 0:01:41]} 27. Qf4 {[%emt 0:04:50]} (27. exf5 $11 {remains equal.} Bxf5 28. Rf4) 27... Qe7 {[%emt 0:00:48] Black is more active.} ({Better is} 27... Qxf4 $17 28. Rxf4 g5) 28. Qg3 {[%emt 0:01:01]} f4 {[%emt 0:04:03]} 29. Rxf4 {[%emt 0:01:35]} Rxf4 {[%emt 0:00:02]} 30. Qxf4 {[%emt 0:00:10]} Rf8 {[%emt 0:00:02]} 31. Qe3 {[%emt 0:03:33]} Rf6 {[%emt 0:01:18]} 32. Rf1 {[%emt 0:00:49]} Rg6 {[%emt 0:00:05]} 33. Ne2 {[%emt 0:04:46]} Qh4 {[%emt 0:00:26]} 34. Be8 $1 {[%emt 0:01:45]} Rg5 {[%emt 0:00:48]} 35. Kh1 {[%emt 0:00:36]} Bg4 {[%emt 0:01:04]} 36. Nf4 {[%emt 0:06:02] aiming for g3.} Nf3 $2 {[%emt 0:01:08][%mdl 8192]} 37. Rxf3 {[%emt 0:01:02]} (37. gxf3 {leads to mate.} Bxh3) (37. Qf2 $142 {Strongly threatening g3.} Qxf2 38. Rxf2) 37... Bxf3 $18 {[%emt 0:00:06]} 38. Qxf3 {[%emt 0:00:07]} Rg3 {[%emt 0:00:50]} 39. Qf2 {[%emt 0:00:40][%mdl 8192] [#]} (39. Qf1 $1 $18 {and life is good for White.} Re3 40. Bf7+ $1 {[%mdl 512]} Kh7 41. Bg6+ Kg8 42. Ne2 (42. Nd5 $2 Re1 $19)) 39... g5 $1 $19 {[%emt 0:00:10][%cal Bg7g5,Bg5f4][%mdl 32]} 40. Bf7+ {[%emt 0:02:13]} Kh7 {[%emt 0:00:33]} 41. Bg6+ {[%emt 0:33:32]} Kh8 {[%emt 0:13:34][%cal Bh7h8,Bh8g8,Bg8f8][%mdl 32]} 42. b4 {[%emt 0:00:00]} gxf4 {[%emt 0:08:42][%mdl 4160] Endgame Discovered Attack. KQR-KQB} 43. Qb2+ {[%emt 0:00:00]} Kg8 {[%emt 0:00:07]} 44. Bf5 {[%emt 0:00:00]} Rg7 $2 {[%emt 0:01:15]} (44... Re3 {( -> ...Re1+)} 45. Qd2 Re1+ 46. Qxe1 Qxe1+ 47. Kh2 Qg3+ 48. Kh1 Qe1+ 49. Kh2 cxb4 50. axb4 Qg3+ 51. Kh1 Qxd3 52. Be6+ Kg7) 45. Be6+ $2 {[%emt 0:00:00]} (45. Qc1) 45... Kf8 {[%emt 0:01:47][%cal Of4f3]} 46. Qa1 {[%emt 0:00:00]} f3 {[%emt 0:01:17]} 47. gxf3 {[%emt 0:00:00]} h5 {[%emt 0:00:49]} 48. bxc5 {[%emt 0:00:00]} (48. Qf1 $142 Rg3 49. e5 cxb4 50. axb4 dxe5 51. Bc8) 48... dxc5 {[%emt 0:01:58] Hoping for ...Qf4.} 49. Bf5 {[%emt 0:00:00]} Qg5 {[%emt 0:01:07][%csl Gg7][%cal Rg5g2]} 50. Qf1 {[%emt 0:00:00] Inhibits Qg2+.} Qe3 {[%emt 0:00:52]} 51. a4 {[%emt 0:00:00]} Rg3 {[%emt 0:00:30]} 52. Kh2 {[%emt 0:00:00]} Rxf3 {[%emt 0:00:55] Black mates.} 53. Qd1 {[%emt 0:00:00]} Rf2+ {[%emt 0:01:27]} 54. Kh1 {[%emt 0:00:00]} Re2 {[%emt 0:00:17] Weighted Error Value: White=0.93/Black=0.53} (54... Qg3 $142 55. Qg1 Qf3+ 56. Qg2 Qxg2#) 0-1